bitfinex-derivatives/quotes_SOLF0:USTF0_20250113
["timestamp","ask_amount","ask_price","bid_price","bid_amount"]
[1736806509492,12.91596902,182.98,182.88,8.7352]
[1736806510293,2.7344,182.94,182.88,8.7352]
[1736806513188,2.7344,182.94,182.88,6.0]
[1736806513393,2.7342,182.95,182.88,6.0]
[1736806514591,189.28472616,183.09,182.9,5.4697]
[1736806514896,189.28472616,183.09,183.03,12.91596902]
[1736806515089,189.28472616,183.09,183.04,6.02]
[1736806515290,189.28472616,183.09,183.03,6.02]
[1736806515591,14.54756902,183.12,183.03,6.02]
[1736806516686,14.54756902,183.12,183.02,6.02]
[1736806517194,2.7321,183.09,183.02,8.753]
[1736806517389,14.54756902,183.12,183.02,6.02]
[1736806517598,2.7325,183.07,183.02,6.02]
[1736806517894,12.91596902,183.09,183.02,6.02]
[1736806518395,2.7329,183.04,183.02,6.02]
[1736806519788,2.7327,183.05,183.02,6.02]
[1736806520295,12.91596902,183.09,182.99,2.7336]
[1736806520788,2.7327,183.05,182.99,2.7336]
[1736806520989,12.91596902,183.12,183.0,12.91596902]
[1736806521189,2.7322,183.08,183.0,12.91596902]
[1736806521490,2.7322,183.08,183.02,2.7331]
[1736806521694,3.2523,183.11,183.0,12.91596902]
[1736806521993,2.7325,183.07,182.98,3.2989]
[1736806522292,12.91596902,183.09,182.98,3.2989]
[1736806522491,2.7327,183.05,182.98,3.2989]
[1736806522885,12.91596902,183.09,182.98,3.2989]
[1736806523090,2.7328,183.05,182.99,2.7335]
[1736806523793,2.7328,183.05,182.98,3.2989]
[1736806523794,2.7326,183.06,183.01,2.7332]
[1736806523994,12.91596902,183.09,182.98,3.2989]
[1736806524493,2.7327,183.05,183.01,2.7333]
[1736806525500,12.91596902,183.09,182.98,1.6383]
[1736806525699,12.91596902,183.09,182.97,12.91596902]
[1736806525700,12.91596902,183.06,182.97,18.91596902]
[1736806526295,2.7331,183.03,182.98,2.7337]
[1736806526490,12.91596902,183.06,182.95,6.0]
[1736806526696,12.91596902,183.03,182.94,12.91596902]
[1736806526897,12.91596902,183.03,182.91,12.91596902]
[1736806527098,3.2692,183.02,182.91,18.91596902]
[1736806527402,2.734,182.97,182.91,6.0]
[1736806527600,3.2692,183.02,182.92,12.91596902]
[1736806528705,2.7335,183.0,182.95,2.7341]
[1736806529006,3.2692,183.02,182.95,2.7341]
[1736806529304,3.2692,183.02,182.91,6.0]
[1736806529603,4.8849,183.02,182.91,6.0]
[1736806529798,2.734,182.97,182.9,9.355]
[1736806530099,12.91596902,183.0,182.9,9.355]
[1736806530703,2.7341,182.96,182.91,2.7347]
[1736806531005,12.91596902,183.0,182.9,1.6433]
[1736806531499,12.91596902,183.0,182.9,2.7349]
[1736806531700,6.0,183.01,182.85,1.6218]
[1736806531899,2.7349,182.91,182.86,2.7354]
[1736806532498,2.7349,182.9,182.86,2.7354]
[1736806532898,12.91596902,182.94,182.86,2.7354]
[1736806533301,12.91596902,182.94,182.84,6.1]
[1736806533507,12.91596902,182.91,182.79,18.99596902]
[1736806534005,2.7354,182.87,182.82,2.7361]
[1736806535205,2.7355,182.86,182.82,2.7361]
[1736806535403,2.7355,182.86,182.81,2.7362]
[1736806536708,151.42778092,183.01,182.85,12.91596902]
[1736806537006,151.42778092,183.01,182.96,12.91596902]
[1736806537304,151.42778092,183.01,182.95,6.1]
[1736806537706,12.91596902,183.06,182.93,6.08]
[1736806537903,2.7334,183.01,182.93,8.8144]
[1736806538107,12.91596902,183.06,182.93,8.8144]
[1736806538308,12.91596902,183.03,182.93,6.08]
[1736806538504,2.7337,182.99,182.93,6.08]
[1736806538700,12.91596902,183.03,182.93,6.08]
[1736806539907,12.91596902,183.03,182.93,8.8145]
[1736806540109,2.733,183.03,182.95,12.91596902]
[1736806541008,2.733,183.03,182.97,2.7338]
[1736806541903,12.91596902,183.08,182.86,5.1239]
[1736806542111,2.7336,182.99,182.87,6.08]
[1736806542310,12.91596902,182.96,182.86,5.1239]
[1736806543310,20.66909854,182.99,182.86,5.1239]
[1736806543517,3.2648,182.98,182.86,5.1239]
[1736806545014,2.7342,182.95,182.86,5.1239]
[1736806545511,2.7345,182.93,182.87,2.7352]
[1736806545811,2.7345,182.93,182.86,5.1239]
[1736806546018,3.2648,182.98,182.86,5.1239]
[1736806546216,3.2648,182.98,182.88,2.7351]
[1736806546623,20.66909854,182.92,182.74,284.78]
[1736806546813,20.66909854,182.89,182.78,1.59]
[1736806547312,20.66909854,182.89,182.8,2.7363]
[1736806547513,20.66909854,182.89,182.78,1.59]
[1736806547717,3.2407,182.88,182.78,1.59]
[1736806548018,3.2407,182.88,182.78,4.3266]
[1736806548417,2.7358,182.84,182.79,2.7365]
[1736806548615,3.2407,182.88,182.79,2.7365]
[1736806549215,2.7359,182.84,182.79,2.7365]
[1736806549718,3.2407,182.88,182.79,2.7365]
[1736806549916,2.736,182.83,182.79,2.7365]
[1736806550414,2.7358,182.84,182.79,2.7365]
[1736806551015,3.2407,182.88,182.74,286.4548]
[1736806551311,20.66909854,182.95,182.79,20.66909854]
[1736806551518,1.697,182.94,182.8,6.18]
[1736806552111,2.7349,182.9,182.83,2.7359]
[1736806552315,1.697,182.94,182.83,2.7359]
[1736806552711,2.7352,182.89,182.84,2.7358]
[1736806553520,2.7349,182.91,182.86,2.7354]
[1736806553716,22.36609854,182.94,182.83,1.7025]
[1736806554017,2.735,182.9,182.85,2.7355]
[1736806554813,2.735,182.9,182.86,2.7355]
[1736806555320,2.7348,182.92,182.83,1.7025]
[1736806555820,2.7348,182.92,182.85,2.7355]
[1736806556118,2.7348,182.92,182.83,22.37159854]
[1736806556713,1.6265,182.96,182.83,22.37159854]
[1736806556908,1.6691,182.99,182.86,20.66909854]
[1736806557113,1.6691,182.99,182.9,2.7348]
[1736806557409,1.6691,182.99,182.89,20.66909854]
[1736806557620,1.6305,183.02,182.92,2.7345]
[1736806557918,1.6305,183.02,182.9,3.1581]
[1736806558121,22.29959854,183.02,182.9,3.1581]
[1736806558416,22.29959854,183.02,182.9,4.3116]
[1736806558617,2.7343,182.95,182.9,4.3116]
[1736806559612,22.29959854,183.02,182.91,2.7347]
[1736806559818,22.29959854,183.02,182.9,1.5767]
[1736806560411,2.7339,182.97,182.9,1.5767]
[1736806560720,1.6305,183.02,182.9,1.5767]
[1736806561216,2.7336,182.99,182.94,2.7343]
[1736806561417,1.6305,183.02,182.92,20.66909854]
[1736806562417,2.7335,183.0,182.95,2.7341]
[1736806562618,1.6305,183.02,182.91,1.7154]
[1736806563018,4.14499649,183.03,182.91,1.7154]
[1736806563214,258.73576993,183.15,182.91,1.7154]
[1736806563215,189.28472616,183.12,183.0,20.66909854]
[1736806563419,189.28472616,183.12,183.04,20.66909854]
[1736806563614,148.84658092,183.1,183.09,2.7321]
[1736806563914,148.84658092,183.1,183.01,10.9999]
[1736806564321,2.7321,183.1,183.01,10.9999]
[1736806564713,20.66909854,183.15,183.01,10.9999]
[1736806564915,2.7321,183.09,183.03,2.7329]
[1736806565111,2.7321,183.09,183.01,10.9999]
[1736806565320,20.66909854,183.15,183.01,10.9999]
[1736806565512,1.1105,183.14,183.01,9.3333]
[1736806565912,1.1105,183.14,183.01,30.00239854]
[1736806566121,1.6664,183.2,183.04,20.66909854]
[1736806566318,3.3193,183.2,183.04,20.66909854]
[1736806566518,2.7314,183.14,183.04,20.66909854]
[1736806566718,3.3193,183.2,183.07,20.66909854]
[1736806567222,20.66909854,183.18,183.02,7.7875]
[1736806567518,3.3193,183.2,183.04,20.66909854]
[1736806567826,3.3193,183.2,183.06,2.7324]
[1736806567827,2.7317,183.12,183.06,2.7324]
[1736806568124,3.3193,183.2,183.07,20.66909854]
[1736806568519,2.7316,183.13,183.07,23.40139854]
[1736806568715,20.66909854,183.18,183.04,20.66909854]
[1736806569025,2.7317,183.12,183.06,2.7325]
[1736806569316,20.66909854,183.18,183.06,2.7325]
[1736806569921,3.3193,183.2,183.06,2.7325]
[1736806570120,2.7318,183.11,183.06,2.7325]
[1736806570321,3.3193,183.2,183.08,2.7321]
[1736806570718,2.7314,183.14,183.08,2.7321]
[1736806571116,2.7315,183.13,183.08,2.7321]
[1736806571624,2.7316,183.12,183.08,2.7321]
[1736806571825,3.3193,183.2,183.06,2.7324]
[1736806572818,2.7319,183.11,183.06,2.7324]
[1736806573017,20.66909854,183.18,183.05,2.7326]
[1736806573425,20.66909854,183.15,183.03,6.14]
[1736806574225,20.66909854,183.15,183.01,3.1933]
[1736806574627,20.66909854,183.12,183.01,3.1933]
[1736806574819,20.66909854,183.12,183.01,1.5846]
[1736806574820,3.243,183.11,183.01,1.5846]
[1736806575225,1.5851,183.11,183.04,2.7328]
[1736806575622,2.7322,183.09,183.04,2.7328]
[1736806575819,2.7322,183.09,183.05,2.7326]
[1736806576323,1.5851,183.17,183.06,6.14]
[1736806576523,1.5851,183.17,183.07,20.66909854]
[1736806576721,2.7313,183.14,183.07,20.66909854]
[1736806577121,1.5851,183.17,183.07,20.66909854]
[1736806577324,2.7319,183.11,183.06,6.14]
[1736806577728,1.5851,183.17,183.07,20.66909854]
[1736806577929,20.66909854,183.24,183.07,20.66909854]
[1736806578130,25.44639854,183.24,183.07,20.66909854]
[1736806578629,2.7312,183.15,183.07,20.66909854]
[1736806579926,2.7312,183.15,183.1,2.7318]
[1736806581031,20.66909854,183.21,183.07,23.40139854]
[1736806581537,20.66909854,183.21,183.07,20.66909854]
[1736806581726,63.20782476,183.27,183.17,20.66909854]
[1736806581928,63.20782476,183.27,183.18,6.12]
[1736806582129,2.7297,183.26,183.2,2.7303]
[1736806582830,63.20782476,183.27,183.2,20.66909854]
[1736806583032,63.20782476,183.27,183.23,2.7298]
[1736806583233,63.20782476,183.27,183.2,20.66909854]
[1736806584233,2.7295,183.26,183.2,23.39949854]
[1736806584426,63.20782476,183.27,183.18,9.2246]
[1736806586632,2.7297,183.26,183.19,2.7304]
[1736806586832,2.7297,183.26,183.18,9.2246]
[1736806587937,63.20782476,183.27,183.18,9.2246]
[1736806588133,63.20782476,183.27,183.18,10.8903]
[1736806588334,63.20782476,183.27,183.22,2.73]
[1736806589229,65.93732476,183.27,183.22,2.73]
[1736806590337,5.4503,183.56,183.26,20.66909854]
[1736806590538,1.6784,183.46,183.29,20.66909854]
[1736806590832,1.5558,183.45,183.29,20.66909854]
[1736806591330,20.66909854,183.44,183.29,20.66909854]
[1736806591731,1.5558,183.45,183.29,20.66909854]
[1736806591933,1.5558,183.45,183.33,2.7284]
[1736806592235,1.5558,183.45,183.34,6.26]
[1736806592734,1.5558,183.45,183.35,20.66909854]
[1736806593138,4.2825,183.45,183.4,2.7274]
[1736806593340,1.5558,183.45,183.38,20.66909854]
[1736806593543,1.6784,183.46,183.38,20.66909854]
[1736806594040,1.6784,183.46,183.41,2.7272]
[1736806594231,1.6784,183.46,183.33,6.26]
[1736806594739,1.6784,183.46,183.35,20.66909854]
[1736806594941,1.6784,183.46,183.36,1.5557]
[1736806595731,4.405,183.46,183.4,2.7274]
[1736806596640,2.7266,183.46,183.36,1.5557]
[1736806596840,2.7266,183.46,183.41,2.7273]
[1736806597039,2.7266,183.46,183.36,1.5557]
[1736806597441,2.7266,183.46,183.4,2.7273]
[1736806597642,2.7266,183.46,183.36,1.5557]
[1736806597838,2.7266,183.46,183.39,2.7276]
[1736806598136,2.7266,183.46,183.36,1.5557]
[1736806598336,1.5777,183.49,183.41,2.7273]
[1736806598544,2.7264,183.48,183.41,2.7273]
[1736806598741,1.5777,183.49,183.41,2.7273]
[1736806600240,2.7266,183.46,183.41,2.7273]
[1736806601742,2.7264,183.47,183.41,2.7273]
[1736806602839,1.5777,183.49,183.4,6.22]
[1736806603035,1.5596,183.51,183.43,2.727]
[1736806604144,2.7263,183.48,183.43,2.727]
[1736806605244,2.7261,183.49,183.4,6.22]
[1736806605840,2.7261,183.49,183.44,2.7268]
[1736806606246,1.5596,183.51,183.4,6.22]
[1736806607037,2.7261,183.49,183.4,6.22]
[1736806607437,2.7261,183.49,183.38,20.66909854]
[1736806607641,2.7264,183.47,183.39,6.2]
[1736806607839,22.22869854,183.51,183.39,6.2]
[1736806608447,2.7264,183.48,183.43,2.727]
[1736806608648,22.22869854,183.51,183.39,6.2]
[1736806609144,22.22869854,183.51,183.4,2.7273]
[1736806610540,2.7267,183.46,183.4,2.7273]
[1736806611346,2.7267,183.46,183.41,2.7273]
[1736806613049,2.7267,183.46,183.42,2.7271]
[1736806613250,20.66909854,183.51,183.39,6.2]
[1736806614251,2.7264,183.47,183.36,1.5557]
[1736806614446,2.7264,183.47,183.4,6.18]
[1736806614949,2.7264,183.47,183.42,2.727]
[1736806615149,2.7267,183.45,183.4,6.18]
[1736806616149,2.7267,183.45,183.38,6.16]
[1736806616750,2.7267,183.45,183.4,2.7274]
[1736806617049,2.7267,183.45,183.38,6.16]
[1736806618150,2.7267,183.45,183.4,2.7274]
[1736806618547,2.7267,183.45,183.38,6.16]
[1736806619347,2.7266,183.46,183.38,6.16]
[1736806620251,2.7264,183.47,183.38,6.16]
[1736806620842,12.84693441,183.48,183.38,6.16]
[1736806621047,12.84693441,183.42,183.33,93.56]
[1736806621248,2.7273,183.41,183.37,2.7278]
[1736806621448,12.84693441,183.42,183.34,6.14]
[1736806621848,2.727,183.43,183.39,2.7276]
[1736806622153,12.84693441,183.45,183.34,18.98693441]
[1736806622342,2.7269,183.44,183.34,20.53913441]
[1736806622742,12.84693441,183.45,183.34,20.53913441]
[1736806622952,15.57373441,183.45,183.41,2.7273]
[1736806623347,3.1533,183.47,183.37,12.84693441]
[1736806623549,2.7269,183.44,183.4,2.7273]
[1736806623949,3.1533,183.47,183.34,22.12213441]
[1736806624143,2.7268,183.45,183.34,22.12213441]
[1736806624650,12.84693441,183.45,183.39,2.7274]
[1736806624853,12.84693441,183.45,183.35,6.12]
[1736806625049,2.7271,183.42,183.37,2.7278]
[1736806625248,12.84693441,183.42,183.37,2.7278]
[1736806625448,12.84693441,183.42,183.35,6.12]
[1736806625653,2.7275,183.4,183.36,2.728]
[1736806626345,2.7274,183.41,183.36,2.728]
[1736806627049,2.7276,183.39,183.34,2.7283]
[1736806627554,20.57442698,183.41,183.33,99.68]
[1736806627851,2.7278,183.38,183.33,102.4085]
[1736806629658,2.728,183.36,183.33,6.12]
[1736806629860,2.728,183.36,183.32,2.7286]
[1736806631054,2.7282,183.35,183.3,2.7289]
[1736806631648,20.57442698,183.41,183.28,6.1]
[1736806631853,22.19332698,183.44,183.29,20.57442698]
[1736806632256,2.7274,183.41,183.29,20.57442698]
[1736806632461,22.19332698,183.44,183.29,20.57442698]
[1736806632657,2.7275,183.4,183.35,2.7282]
[1736806633463,22.19332698,183.44,183.29,20.57442698]
[1736806633660,2.7277,183.39,183.34,2.7283]
[1736806635859,2.7278,183.38,183.34,2.7283]
[1736806636064,20.57442698,183.41,183.29,6.08]
[1736806636665,20.57442698,183.41,183.31,2.7288]
[1736806636868,2.7281,183.36,183.31,2.7288]
[1736806637065,20.57442698,183.41,183.31,2.7288]
[1736806637867,2.7283,183.35,183.31,2.7288]
[1736806638361,20.57442698,183.37,183.24,1.7049]
[1736806638565,3.2945,183.36,183.25,26.65442698]
[1736806639167,2.7284,183.34,183.28,2.7292]
[1736806639358,2.7284,183.34,183.25,26.65442698]
[1736806639763,3.2945,183.36,183.28,2.7292]
[1736806639965,20.57442698,183.35,183.22,93.58]
[1736806640170,2.729,183.3,183.26,2.7294]
[1736806641072,2.729,183.3,183.22,99.66]
[1736806641571,2.729,183.3,183.25,2.7296]
[1736806641770,2.729,183.3,183.22,99.66]
[1736806642170,2.729,183.3,183.25,2.7296]
[1736806642372,2.729,183.3,183.22,99.66]
[1736806642769,2.7292,183.29,183.25,2.7296]
[1736806643467,22.27392698,183.35,183.22,93.58]
[1736806643667,20.57442698,183.32,183.22,93.58]
[1736806644071,2.7296,183.26,183.22,93.58]
[1736806644973,20.57442698,183.32,183.22,93.58]
[1736806646163,2.7299,183.24,183.22,93.58]
[1736806646468,20.57442698,183.29,183.16,6.06]
[1736806646670,3.2471,183.28,183.18,2.7307]
[1736806647074,20.57442698,183.26,183.15,6.06]
[1736806647275,2.7305,183.2,183.16,2.7309]
[1736806647865,2.7307,183.19,183.15,8.7911]
[1736806648070,20.57442698,183.26,183.15,8.7911]
[1736806648375,20.57442698,183.26,183.15,6.06]
[1736806648577,2.7306,183.2,183.16,2.7309]
[1736806648875,20.57442698,183.23,183.11,93.62]
[1736806649075,20.57442698,183.23,183.11,99.66]
[1736806649276,2.7307,183.18,183.15,2.7311]
[1736806649472,12.88275044,183.22,183.11,112.54275044]
[1736806649877,2.7309,183.18,183.13,2.7313]
[1736806650578,2.7309,183.17,183.13,2.7313]
[1736806652278,2.7309,183.17,183.12,2.7316]
[1736806652677,12.88275044,183.22,183.11,112.54275044]
[1736806653269,12.88275044,183.22,183.12,2.7316]
[1736806653676,2.7314,183.14,183.09,2.732]
[1736806655175,12.88275044,183.16,183.03,1.6034]
[1736806655380,12.88275044,183.13,183.04,6.02]
[1736806655569,12.88275044,183.13,183.03,7.6234]
[1736806655775,12.88275044,183.13,183.02,12.88275044]
[1736806656179,12.88275044,183.13,183.02,18.90275044]
[1736806656375,2.7322,183.09,183.04,2.7328]
[1736806656573,12.88275044,183.13,183.02,18.90275044]
[1736806656774,14.44605044,183.17,183.05,12.88275044]
[1736806656971,14.44605044,183.17,183.06,2.7324]
[1736806657180,14.44605044,183.17,183.05,12.88275044]
[1736806657677,2.7317,183.12,183.06,2.7324]
[1736806658380,2.7318,183.11,183.06,2.7324]
[1736806659678,2.7318,183.11,183.07,2.7323]
[1736806660474,2.7321,183.09,183.04,8.7528]
[1736806661180,2.7321,183.09,183.05,2.7326]
[1736806662275,2.7321,183.09,183.04,2.7328]
[1736806662474,2.7323,183.08,183.02,18.88275044]
[1736806662676,12.88275044,183.11,183.01,1.6884]
[1736806663682,2.7331,183.03,182.97,2.7339]
[1736806663984,12.88275044,183.04,182.97,2.7339]
[1736806664382,2.7333,183.01,182.97,2.7339]
[1736806664575,2.7333,183.01,182.93,7.6344]
[1736806664774,2.7333,183.01,182.96,2.734]
[1736806664979,2.7334,183.0,182.93,7.6344]
[1736806665880,2.7333,183.01,182.93,7.6344]
[1736806666077,12.88275044,183.04,182.93,7.6344]
[1736806667082,2.7332,183.02,182.97,2.7337]
[1736806667280,12.88275044,183.04,182.97,2.7337]
[1736806667474,12.88275044,183.04,182.93,7.6344]
[1736806667681,2.7338,182.98,182.93,10.3688]
[1736806667882,12.88275044,183.01,182.93,2.7344]
[1736806668781,12.88275044,183.01,182.94,2.7343]
[1736806669482,12.88275044,183.01,182.96,2.734]
[1736806669877,2.7335,183.0,182.92,6.02]
[1736806671181,2.7335,183.0,182.95,2.7341]
[1736806672782,12.88275044,183.01,182.92,6.02]
[1736806672983,3.35,183.09,182.92,6.02]
[1736806672984,12.88275044,183.04,182.92,6.02]
[1736806673186,12.88275044,183.04,182.94,12.88275044]
[1736806673487,2.7327,183.05,182.94,12.88275044]
[1736806674290,2.7327,183.05,182.97,12.88275044]
[1736806674481,2.7327,183.05,182.98,1.7017]
[1736806674985,2.7327,183.05,183.0,2.7333]
[1736806675989,12.88275044,183.1,182.99,6.02]
[1736806676185,12.88275044,183.1,183.0,1.5656]
[1736806677090,12.88275044,183.1,183.0,14.44835044]
[1736806677291,2.7321,183.09,183.0,14.44835044]
[1736806677892,2.7323,183.08,183.0,1.5656]
[1736806678087,12.88275044,183.07,183.0,1.5656]
[1736806678795,2.7327,183.05,183.01,2.7332]
[1736806679091,2.7327,183.05,182.99,6.02]
[1736806679092,12.88275044,183.07,182.99,6.02]
[1736806679391,15.61515044,183.07,183.02,2.733]
[1736806679580,12.88275044,183.07,183.02,2.733]
[1736806679986,2.7327,183.05,182.98,7.7217]
[1736806680491,2.7327,183.05,183.0,2.7333]
[1736806680889,12.88275044,183.1,182.98,7.7217]
[1736806681187,12.88275044,183.13,183.0,12.88275044]
[1736806681584,12.88275044,183.13,183.01,1.5836]
[1736806681790,2.7317,183.12,183.07,2.7322]
[1736806682087,12.88275044,183.13,183.07,2.7322]
[1736806682290,12.88275044,183.13,183.06,6.02]
[1736806682593,12.88275044,183.1,183.06,6.02]
[1736806683092,2.7321,183.09,183.06,6.02]
[1736806683391,12.88275044,183.1,183.02,1.6482]
[1736806683691,12.88275044,183.07,183.02,6.02]
[1736806684489,2.7326,183.06,183.02,6.02]
[1736806684886,12.88275044,183.07,183.02,6.02]
[1736806685091,12.88275044,183.07,182.99,6.02]
[1736806685895,2.7331,183.02,182.99,6.02]
[1736806686288,2.733,183.03,182.99,8.7535]
[1736806687190,12.88275044,183.07,182.98,1.7017]
[1736806687394,12.88275044,183.04,182.96,6.02]
[1736806688095,12.88275044,183.01,182.93,6.02]
[1736806688491,2.7336,182.99,182.94,2.7342]
[1736806688793,12.88275044,183.01,182.93,6.02]
[1736806689387,12.88275044,183.01,182.93,8.7544]
[1736806689795,12.88275044,183.01,182.93,2.7344]
[1736806690092,12.88275044,183.01,182.95,2.7342]
[1736806690593,12.88275044,183.01,182.96,2.7339]
[1736806690792,1.6387,183.03,182.92,6.02]
[1736806690993,12.88275044,183.04,182.92,6.02]
[1736806691695,2.7334,183.01,182.96,2.7339]
[1736806693096,12.88275044,183.07,182.94,12.88275044]
[1736806693599,2.7328,183.05,182.94,12.88275044]
[1736806694301,15.61515044,183.07,182.97,12.88275044]
[1736806694797,15.61515044,183.07,183.02,2.7331]
[1736806694992,15.61515044,183.07,182.98,3.232]
[1736806694993,2.7328,183.04,183.0,6.02]
[1736806695198,12.88275044,183.04,182.96,2.7339]
[1736806695398,12.88275044,183.04,182.95,6.02]
[1736806696200,2.7331,183.02,182.97,2.7337]
[1736806696995,2.7333,183.01,182.97,2.7337]
[1736806697196,2.7333,183.01,182.96,2.734]
[1736806697796,12.88275044,183.01,182.95,6.02]
[1736806697999,12.88275044,183.01,182.91,3.232]
[1736806698202,12.88275044,183.01,182.92,6.02]
[1736806698401,2.7339,182.97,182.93,2.7344]
[1736806698600,12.88275044,182.98,182.92,6.02]
[1736806699298,2.7339,182.97,182.93,2.7344]
[1736806700006,2.7339,182.97,182.88,106.58275044]
[1736806700007,12.88275044,182.95,182.88,99.72]
[1736806701098,12.88275044,182.95,182.89,2.735]
[1736806701600,12.88275044,182.95,182.88,93.7]
[1736806701800,12.88275044,182.92,182.88,93.7]
[1736806702002,12.88275044,182.92,182.85,7.5934]
[1736806702305,2.7351,182.89,182.85,6.02]
[1736806702605,12.88275044,182.89,182.82,6.02]
[1736806702903,12.88275044,182.89,182.78,1.6694]
[1736806703103,12.88275044,182.89,182.79,6.02]
[1736806703503,12.88275044,182.86,182.79,6.02]
[1736806703705,12.88275044,182.83,182.77,93.78]
[1736806704002,15.61885044,182.83,182.77,93.78]
[1736806704205,12.88275044,182.83,182.76,6.02]
[1736806704598,12.88275044,182.83,182.74,6.02]
[1736806705406,20.70236786,182.83,182.74,6.02]
[1736806707108,2.7367,182.79,182.74,6.02]
[1736806707315,20.70236786,182.83,182.74,6.02]
[1736806708500,3.2589,182.87,182.74,6.02]
[1736806710005,2.7361,182.83,182.78,2.7367]
[1736806710209,3.2589,182.87,182.74,6.02]
[1736806710708,2.7359,182.84,182.72,1.6695]
[1736806710900,2.7359,182.84,182.73,6.02]
[1736806711104,3.2589,182.87,182.73,6.02]
[1736806711306,2.7357,182.85,182.79,2.7365]
[1736806712003,5.9944,182.87,182.81,2.7362]
[1736806712307,4.3337,182.87,182.8,6.02]
[1736806712507,2.7358,182.84,182.8,6.02]
[1736806712709,1.5982,182.87,182.8,6.02]
[1736806713007,2.736,182.83,182.8,6.02]
[1736806715612,1.5982,182.87,182.8,6.02]
[1736806715812,4.3336,182.87,182.8,6.02]
[1736806716213,1.5982,182.87,182.8,6.02]
[1736806716413,20.70236786,182.85,182.8,6.02]
[1736806717509,2.7361,182.83,182.8,6.02]
[1736806717710,20.70236786,182.85,182.8,6.02]
[1736806718509,2.7361,182.83,182.8,6.02]
[1736806718914,20.70236786,182.82,182.74,6.02]
[1736806719113,2.7364,182.81,182.74,6.02]
[1736806719418,20.70236786,182.79,182.68,6.02]
[1736806719605,20.70236786,182.76,182.68,6.02]
[1736806719808,2.7373,182.74,182.67,1.7098]
[1736806720010,2.7373,182.74,182.69,2.738]
[1736806722511,3.2805,182.78,182.68,6.02]
[1736806723214,2.7369,182.77,182.72,2.7375]
[1736806723408,2.7369,182.77,182.68,6.02]
[1736806723615,1.6815,182.84,182.68,26.72236786]
[1736806723813,1.6815,182.84,182.71,20.70236786]
[1736806724621,2.7363,182.81,182.76,2.7369]
[1736806729219,2.7364,182.8,182.75,6.02]
[1736806729924,14.62176493,182.84,182.75,6.02]
[1736806730125,12.94026493,182.84,182.75,6.02]
[1736806730824,2.7361,182.83,182.75,6.02]
[1736806731019,12.94026493,182.84,182.75,6.02]
[1736806731422,2.7363,182.81,182.76,2.7369]
[1736806731924,2.7361,182.82,182.75,6.02]
[1736806732421,2.736,182.83,182.78,2.7366]
[1736806733123,12.94026493,182.84,182.5,38.26503484]
[1736806733316,2.7364,182.8,182.7,12.94026493]
[1736806733719,2.7364,182.8,182.75,2.7371]
[1736806734021,12.94026493,182.81,182.7,12.94026493]
[1736806734224,12.94026493,182.78,182.68,1.5942]
[1736806734419,12.94026493,182.78,182.69,6.02]
[1736806734621,12.94026493,182.75,182.69,8.7579]
[1736806734820,2.7374,182.74,182.69,6.02]
[1736806735524,15.67746493,182.75,182.71,2.7377]
[1736806740636,15.67746493,182.75,182.66,106.72026493]
[1736806740637,16.10356493,182.79,182.66,93.78]
[1736806740927,12.94026493,182.72,182.66,93.78]
[1736806741129,2.7379,182.71,182.67,2.7382]
[1736806741324,12.94026493,182.72,182.64,1.7008]
[1736806741531,12.94026493,182.72,182.61,6.02]
[1736806741924,12.94026493,182.72,182.62,12.94026493]
[1736806742126,12.94026493,182.75,182.62,14.62796493]
[1736806742426,2.7375,182.73,182.68,2.7381]
[1736806742824,16.10356493,182.79,182.65,12.94026493]
[1736806743122,2.737,182.76,182.71,2.7377]